bitfinex/quotes_SOLUSD_20250318
["timestamp","ask_amount","ask_price","bid_price","bid_amount"]
[1742311862877,25.86177357,122.95,122.94,158.13]
[1742311864688,25.86177357,122.96,122.94,158.13]
[1742311865069,25.86177357,122.97,122.94,158.13]
[1742311865269,25.86177357,122.96,122.94,158.13]
[1742311867394,25.86177357,122.98,122.94,158.13]
[1742311868390,25.86177357,122.96,122.94,158.13]
[1742311868897,25.86177357,122.97,122.94,158.13]
[1742311869384,25.86177357,122.98,122.94,158.13]
[1742311869589,25.92477357,122.99,122.98,20.0]
[1742311869797,25.92477357,122.99,122.98,158.1]
[1742311870103,0.063,122.99,122.98,158.1]
[1742311873096,25.92477357,122.99,122.98,158.1]
[1742311876374,0.063,122.99,122.98,158.1]
[1742311876882,25.92477357,122.99,122.98,158.1]
[1742311877902,0.063,122.99,122.98,158.1]
[1742311883677,25.92477357,122.99,122.98,158.1]
[1742311883883,25.92477357,122.99,122.98,138.1]
[1742311884100,34.05547357,122.99,122.98,138.1]
[1742311884483,25.92477357,122.99,122.98,138.1]
[1742311886285,34.05547357,122.99,122.98,138.1]
[1742311886487,25.92477357,122.99,122.98,138.1]
[1742311889192,0.063,122.99,122.98,138.1]
[1742311892710,25.92477357,122.99,122.98,138.1]
[1742311895910,34.05547357,122.99,122.98,138.1]
[1742311896314,54.20732243,122.99,122.94,138.13]
[1742311896513,54.20732243,122.99,122.91,138.1]
[1742311896514,18.64964886,122.94,122.91,138.1]
[1742311896718,33.99707357,122.92,122.91,138.1]
[1742311897015,52.64672243,122.92,122.91,138.1]
[1742311897399,52.64672243,122.92,122.89,138.13]
[1742311897400,18.64964886,122.91,122.89,138.13]
[1742311897606,25.86177357,122.9,122.89,138.13]
[1742311897995,44.51142243,122.9,122.89,138.13]
[1742311898598,70.373196,122.9,122.89,0.03]
[1742311899034,78.509796,122.9,122.86,150.64237905]
[1742311899320,25.86177357,122.87,122.86,150.64237905]
[1742311899707,25.86177357,122.87,122.86,12.54237905]
[1742311899708,44.51142243,122.87,122.86,12.54237905]
[1742311900009,18.64964886,122.86,122.85,75.07427434]
[1742311900223,44.51142243,122.86,122.85,75.07427434]
[1742311900603,44.51142243,122.86,122.83,138.1]
[1742311900804,25.86177357,122.84,122.83,138.1]
[1742311901031,25.86177357,122.86,122.83,138.1]
[1742311901895,25.86177357,122.85,122.83,138.1]
[1742311902516,18.64964886,122.89,122.83,163.96177357]
[1742311902831,25.86177357,122.87,122.83,163.96177357]
[1742311903127,25.86177357,122.87,122.83,138.1]
[1742311903620,25.86177357,122.87,122.83,163.96177357]
[1742311903933,25.86177357,122.88,122.84,1.2206669]
[1742311904138,18.64964886,122.92,122.87,20.0]
[1742311904457,25.86177357,122.92,122.88,27.0821705]
[1742311904616,25.86177357,122.92,122.88,1.22039693]
[1742311904816,25.86177357,122.91,122.88,1.22039693]
[1742311905031,25.86177357,122.92,122.88,27.0821705]
[1742311905642,25.86177357,122.92,122.88,1.22039693]
[1742311906143,25.86177357,122.91,122.88,1.22039693]
[1742311906339,25.86177357,122.89,122.87,165.54]
[1742311906655,18.64964886,122.92,122.87,158.1]
[1742311906656,25.86177357,122.88,122.87,158.1]
[1742311907057,25.86177357,122.88,122.87,138.1]
[1742311907439,25.86177357,122.89,122.87,138.1]
[1742311907825,25.86177357,122.9,122.87,138.1]
[1742311908556,25.86177357,122.91,122.87,138.1]
[1742311909057,25.86177357,122.91,122.87,163.96177357]
[1742311909220,25.86177357,122.91,122.88,1.22027413]
[1742311909425,25.86177357,122.92,122.88,1.22027413]
[1742311909648,25.86177357,122.91,122.88,138.1]
[1742311909856,25.86177357,122.89,122.88,138.1]
[1742311912945,52.64872243,122.89,122.88,138.1]
[1742311913134,68.23106234,122.89,122.88,138.1]
[1742311913541,60.09376234,122.89,122.88,138.1]
[1742311913937,68.23106234,122.89,122.88,138.1]
[1742311914248,18.64964886,122.88,122.86,138.13]
[1742311914630,41.44411348,122.87,122.86,138.13]
[1742311915427,18.64964886,122.89,122.86,138.13]
[1742311915641,0.063,122.9,122.86,138.13]
[1742311915952,41.44411348,122.88,122.86,138.13]
[1742311916644,41.44411348,122.87,122.86,138.13]
[1742311919264,68.23236234,122.87,122.86,138.13]
[1742311919835,68.23236234,122.87,122.86,0.03]
[1742311920535,18.64964886,122.86,122.81,138.13]
[1742311920741,41.44411348,122.82,122.81,138.13]
[1742311921177,60.09376234,122.82,122.81,138.13]
[1742311921347,109.67977582,122.82,122.81,138.13]
[1742311921672,109.67977582,122.82,122.81,0.03]
[1742311922741,60.09376234,122.82,122.81,0.03]
[1742311923058,68.23566234,122.82,122.81,0.03]
[1742311923244,109.67977582,122.82,122.81,0.03]
[1742311923570,60.09376234,122.82,122.81,0.03]
[1742311926986,26.9124,122.86,122.81,0.03]
[1742311926987,18.64964886,122.84,122.81,138.13]
[1742311927188,18.64964886,122.85,122.81,138.13]
[1742311927362,41.44411348,122.84,122.81,138.13]
[1742311927562,41.44411348,122.83,122.81,138.13]
[1742311927765,18.64964886,122.85,122.81,145.57]
[1742311927766,41.44411348,122.85,122.81,145.57]
[1742311927967,41.44411348,122.86,122.82,42.66500249]
[1742311928271,41.44411348,122.85,122.84,20.0]
[1742311928473,41.44411348,122.86,122.84,20.0]
[1742311929267,18.64964886,122.89,122.84,20.0]
[1742311929268,41.44411348,122.87,122.84,20.0]
[1742311929475,41.44411348,122.87,122.84,158.1]
[1742311929684,41.44411348,122.88,122.84,179.54411348]
[1742311929975,0.063,122.9,122.84,179.54411348]
[1742311929976,0.063,122.9,122.85,50.10470118]
[1742311930166,41.50711348,122.9,122.85,188.20470118]
[1742311930367,41.50711348,122.9,122.85,186.98411348]
[1742311930563,0.063,122.9,122.86,42.66451817]
[1742311930764,41.50711348,122.9,122.86,1.22040469]
[1742311931265,0.063,122.9,122.86,1.22040469]
[1742311931468,41.50711348,122.9,122.86,1.22040469]
[1742311931673,41.44411348,122.89,122.86,1.22040469]
[1742311931879,41.44411348,122.89,122.85,138.1]
[1742311931880,41.44411348,122.87,122.85,138.1]
[1742311932179,41.44411348,122.86,122.85,138.1]
[1742311933076,41.44411348,122.87,122.85,138.1]
[1742311933665,41.44411348,122.86,122.85,138.1]
[1742311934375,41.44411348,122.87,122.85,138.1]
[1742311935862,41.44411348,122.86,122.85,138.1]
[1742311938789,68.23306234,122.86,122.81,138.13]
[1742311938979,41.44411348,122.83,122.81,138.13]
[1742311941071,25.9148606,122.84,122.81,138.13]
[1742311941270,25.9148606,122.84,122.83,20.0]
[1742311943485,25.9148606,122.84,122.81,138.13]
[1742311943695,25.9148606,122.82,122.81,138.13]
[1742311944488,25.9148606,122.82,122.81,0.03]
[1742311944489,70.47937006,122.82,122.81,0.03]
[1742311944894,70.47937006,122.82,122.8,0.03]
[1742311944895,18.64964886,122.81,122.8,0.03]
[1742311945201,68.30347924,122.81,122.8,0.03]
[1742311947293,60.16087924,122.81,122.8,0.03]
[1742311949684,7.503,122.86,122.8,0.03]
[1742311949880,41.51123038,122.81,122.8,138.13]
[1742311952995,41.51123038,122.82,122.8,138.13]
[1742311954886,41.51123038,122.83,122.8,138.13]
[1742311955275,41.51123038,122.82,122.8,138.13]
[1742311957089,41.51123038,122.81,122.8,138.13]
[1742311958277,60.16087924,122.81,122.8,138.13]
[1742311958482,68.30347924,122.81,122.8,138.13]
[1742311958684,68.30347924,122.81,122.8,0.03]
[1742311960754,60.16087924,122.81,122.8,0.03]
[1742311963205,41.51123038,122.81,122.8,0.03]
[1742311963388,0.063,122.82,122.8,0.03]
[1742311963588,41.57423038,122.82,122.8,138.13]
[1742311964507,0.063,122.82,122.8,138.13]
[1742311964705,41.57423038,122.82,122.8,138.13]
[1742311965601,41.51123038,122.81,122.8,138.13]
[1742311966691,60.16087924,122.81,122.8,0.03]
[1742311969112,44.58208731,122.81,122.8,0.03]
[1742311970016,25.93243845,122.81,122.8,0.03]
[1742311971817,25.93243845,122.81,122.8,138.13]
[1742311981711,25.99543845,122.82,122.8,138.13]
[1742311983615,0.063,122.81,122.8,138.13]
[1742311983827,25.99543845,122.81,122.8,138.13]
[1742311987231,0.063,122.81,122.8,138.13]
[1742311992223,0.063,122.82,122.81,138.037]
[1742311992424,0.063,122.82,122.81,145.477]
[1742311992641,0.063,122.82,122.81,171.40943845]
[1742311993826,0.063,122.82,122.81,190.05908731]
[1742311994142,0.063,122.82,122.81,164.12664886]
[1742311994643,0.063,122.82,122.81,190.05908731]
[1742311995144,0.063,122.82,122.81,190.55908731]
[1742311995326,0.063,122.86,122.84,20.0]
[1742311995527,0.063,122.86,122.85,8.66048527]
[1742311996223,0.063,122.86,122.85,7.44]
[1742311997647,0.063,122.86,122.85,34.89203845]
[1742311998146,0.063,122.9,122.88,137.911]
[1742311998520,0.063,122.9,122.89,8.66027933]
[1742312001231,25.99543845,122.9,122.89,7.44]
[1742312001550,25.99543845,122.9,122.89,145.351]
[1742312002230,0.063,122.9,122.89,171.28343845]
[1742312002432,0.063,122.9,122.89,177.62023845]
[1742312003460,0.063,122.9,122.89,179.13043845]
[1742312004453,0.063,122.9,122.89,491.63043845]
[1742312004658,0.063,122.9,122.89,491.13043845]
[1742312004950,0.063,122.9,122.89,491.63043845]
[1742312005153,0.063,122.9,122.89,491.13043845]
[1742312005356,0.063,122.9,122.89,179.13043845]
[1742312006057,0.063,122.9,122.89,197.78008731]
[1742312006572,0.063,122.99,122.98,20.0]
[1742312006733,0.063,122.99,122.98,145.142]
[1742312011735,25.99543845,123.03,123.01,137.596]
[1742312011934,0.063,123.03,123.02,7.42]
[1742312012632,0.063,123.03,123.02,8.63893579]
[1742312013062,0.063,123.03,123.02,34.57137424]
[1742312013373,0.063,123.03,123.02,53.2210231]
[1742312013866,0.063,123.03,123.02,59.87829704]
[1742312014161,0.063,123.03,123.02,53.2210231]
[1742312015054,0.063,123.03,123.02,53.7210231]
[1742312015852,0.063,123.03,123.02,60.11202845]
[1742312017738,0.063,123.03,123.02,27.28858465]
[1742312018047,25.93243845,123.05,123.04,137.533]
[1742312018248,25.93243845,123.06,123.04,137.533]
[1742312018451,25.93243845,123.05,123.04,137.533]
[1742312019964,25.99543845,123.07,123.04,137.533]
[1742312020259,25.99543845,123.07,123.06,20.0]
[1742312023841,25.99543845,123.07,123.06,157.533]
[1742312026268,35.66213845,123.07,123.06,137.533]
[1742312026572,6.403,123.06,123.0,137.533]
[1742312026743,51.8648769,123.01,123.0,137.533]
[1742312027063,25.93243845,123.01,123.0,137.533]
[1742312029159,34.06183845,123.01,123.0,137.533]
[1742312029667,25.93243845,123.01,123.0,137.533]
[1742312032946,25.93243845,123.01,123.0,137.596]
[1742312033442,8.1585,123.03,123.0,137.596]
[1742312033647,0.03,123.03,123.0,137.596]
[1742312033950,25.93243845,123.01,123.0,137.596]
[1742312035951,0.03,123.03,123.0,137.596]
[1742312036147,25.93243845,123.02,123.0,137.596]
[1742312036359,25.96243845,123.03,123.0,137.596]
[1742312036552,25.96243845,123.03,123.01,7.42]
[1742312037547,25.93243845,123.02,123.01,7.42]
[1742312037769,25.96243845,123.03,123.01,7.42]
[1742312038074,0.03,123.03,123.02,137.533]
[1742312039051,0.03,123.03,123.02,163.46543845]
[1742312040250,0.03,123.03,123.02,137.533]
[1742312040450,0.03,123.03,123.02,163.46543845]
[1742312042766,0.03,123.03,123.02,144.953]
[1742312043755,0.03,123.03,123.02,170.88543845]
[1742312044270,0.03,123.03,123.02,144.953]
[1742312044970,0.03,123.03,123.02,170.88543845]
[1742312045171,25.99543845,123.07,123.06,137.503]
[1742312045359,0.063,123.07,123.06,137.503]
[1742312045558,25.99543845,123.07,123.06,137.503]
[1742312046382,0.063,123.07,123.06,137.503]
[1742312046970,25.99543845,123.07,123.06,137.503]
[1742312047683,0.063,123.07,123.06,137.503]
[1742312048170,25.99543845,123.07,123.06,137.503]
[1742312049078,0.063,123.07,123.06,137.503]
[1742312049394,25.99543845,123.07,123.06,137.503]
[1742312050297,0.063,123.07,123.06,137.503]
[1742312051161,6.3047,123.12,123.08,111.50756155]
[1742312051487,0.063,123.12,123.08,111.50756155]
[1742312051688,25.93243845,123.11,123.1,20.0]
[1742312052185,0.063,123.12,123.1,20.0]
[1742312052680,25.93243845,123.11,123.1,20.0]
[1742312054671,34.05523845,123.11,123.08,111.50756155]
[1742312054873,25.93243845,123.09,123.08,111.50756155]
[1742312057180,34.05653845,123.09,123.08,111.50756155]
[1742312057781,8.1238,123.1,123.08,111.50756155]
[1742312057989,25.93243845,123.09,123.08,111.50756155]
[1742312064495,25.93243845,123.1,123.08,111.50756155]
[1742312064666,25.93243845,123.11,123.1,20.0]
[1742312065385,0.063,123.13,123.1,20.0]
[1742312065692,25.93243845,123.11,123.1,131.50756155]
[1742312067383,0.063,123.13,123.1,131.50756155]
[1742312067595,25.93243845,123.12,123.1,131.50756155]
[1742312067895,25.93243845,123.11,123.1,131.50756155]
[1742312070102,25.96243845,123.11,123.1,131.50756155]
[1742312070898,34.08523845,123.11,123.1,131.50756155]
[1742312072212,25.96243845,123.11,123.1,131.50756155]
[1742312072501,34.08523845,123.11,123.1,111.50756155]
[1742312074492,34.08523845,123.11,123.08,111.57056155]
[1742312074696,25.93243845,123.09,123.08,0.063]
[1742312075800,34.05653845,123.09,123.08,0.063]
[1742312078597,25.93243845,123.09,123.08,0.063]
[1742312079915,0.03,123.11,123.08,0.063]
[1742312080109,25.93243845,123.09,123.08,0.063]
[1742312080405,25.93243845,123.09,123.08,111.57056155]
[1742312080789,8.1529,123.11,123.08,111.57056155]
[1742312080987,25.93243845,123.09,123.08,111.57056155]
[1742312083106,16.51928315,123.09,123.08,111.57056155]
[1742312084705,24.64338315,123.09,123.08,111.57056155]
[1742312084884,43.29303201,123.09,123.04,7.42]
[1742312085087,16.51928315,123.05,123.04,145.52]
[1742312085611,16.51928315,123.05,123.04,138.1]
[1742312086383,8.1251,123.08,123.04,138.1]
[1742312086682,16.51928315,123.05,123.04,138.1]
[1742312087086,25.82754414,123.05,123.04,138.1]
[1742312089305,17.1805,123.09,123.04,138.1]
[1742312089306,25.82754414,123.06,123.04,138.1]
[1742312089606,25.82754414,123.07,123.04,138.1]
[1742312090003,25.82754414,123.06,123.04,138.1]
[1742312090501,25.82754414,123.05,123.04,138.1]
[1742312090706,25.82754414,123.06,123.04,138.1]
[1742312091104,25.82754414,123.05,123.04,138.1]
[1742312091607,25.82754414,123.06,123.04,138.1]
[1742312092701,25.82754414,123.07,123.04,138.1]
[1742312093317,25.82754414,123.06,123.04,138.1]
[1742312093494,25.82754414,123.05,123.04,138.1]
[1742312098306,1.6362,123.09,123.04,138.1]
[1742312098510,25.82754414,123.07,123.04,138.1]
[1742312099316,25.82754414,123.06,123.04,138.1]
[1742312100313,25.82754414,123.05,123.04,138.1]
[1742312100823,25.82754414,123.05,123.02,138.163]
[1742312101119,25.82754414,123.03,123.02,20.063]
[1742312101300,25.82754414,123.03,123.02,0.063]
[1742312101929,52.605193,123.03,123.02,0.063]
[1742312102306,60.782793,123.03,123.02,0.063]
[1742312102812,52.654793,123.03,123.02,0.063]
[1742312103215,46.142493,123.03,123.02,0.063]
[1742312103936,54.270493,123.03,123.02,0.063]
[1742312104222,46.142493,123.03,123.02,0.063]
[1742312104437,54.270493,123.03,123.02,0.063]
[1742312105219,80.09803714,123.03,123.0,0.063]
[1742312105419,70.30473714,123.01,123.0,0.063]
[1742312106438,70.30473714,123.01,122.99,0.063]
[1742312106642,18.64964886,122.99,122.95,138.163]
[1742312106805,25.82754414,122.96,122.95,0.063]
[1742312108516,25.82754414,122.97,122.95,0.063]
[1742312108717,25.82754414,122.98,122.95,138.163]
[1742312109622,25.82754414,122.97,122.95,138.163]
[1742312110125,25.82754414,122.98,122.95,138.163]
[1742312110611,18.64964886,123.01,122.95,138.163]
[1742312110814,25.82754414,122.98,122.95,138.163]
[1742312111214,25.82754414,122.97,122.95,138.163]
[1742312111532,25.82754414,122.98,122.95,138.163]
[1742312111914,18.64964886,123.01,122.95,138.163]
[1742312112106,25.82754414,122.98,122.97,20.0]
[1742312112315,25.82754414,123.0,122.97,138.1]
[1742312112627,25.82754414,123.0,122.99,20.0]
[1742312112822,25.82754414,123.01,123.0,20.0]
[1742312113026,25.82754414,123.01,123.0,158.1]
[1742312116539,25.82754414,123.01,123.0,138.1]
[1742312116741,80.09233714,123.01,122.95,138.163]
[1742312116921,25.82754414,122.97,122.95,138.163]
[1742312117122,25.82754414,122.98,122.97,20.0]
[1742312119040,25.82754414,122.99,122.98,20.0]
[1742312119244,25.82754414,122.99,122.97,138.1]
[1742312119442,25.82754414,123.0,122.97,145.52]
[1742312119744,25.82754414,122.99,122.97,145.52]
[1742312120542,25.82754414,123.0,122.99,20.0]
[1742312124140,25.82754414,123.0,122.99,158.1]
[1742312124346,25.82754414,123.05,122.99,185.54004414]
[1742312124541,25.82754414,123.04,123.0,1.21894533]
[1742312124724,25.82754414,123.04,123.01,7.42]
[1742312126539,25.82754414,123.03,123.01,7.42]
[1742312127527,25.82754414,123.04,123.01,7.42]
[1742312127935,25.82754414,123.05,123.01,7.42]
[1742312128134,25.82754414,123.05,123.01,145.52]
[1742312130432,25.82754414,123.03,123.01,145.52]
[1742312131328,25.82754414,123.04,123.01,145.52]
[1742312131527,25.82754414,123.04,123.03,20.0]
[1742312133353,16.53051851,123.04,123.03,20.0]
[1742312134551,24.65801851,123.04,122.97,0.063]
[1742312134856,16.53051851,123.0,122.99,20.0]
[1742312135038,16.53051851,123.01,122.99,20.0]
[1742312137169,23.96051851,123.05,123.01,20.0]
[1742312137339,16.56051851,123.05,123.01,20.0]
[1742312138555,16.56051851,123.05,123.0,43.93051851]
[1742312139362,25.85809263,123.05,123.0,53.22809263]
[1742312139741,25.85809263,123.05,123.03,20.0]
[1742312139941,25.82809263,123.04,123.03,20.0]
[1742312140666,25.82809263,123.04,123.0,7.4]
[1742312140896,25.82809263,123.03,123.01,20.0]
[1742312141748,25.82809263,123.04,123.0,7.4]
[1742312141948,25.85809263,123.05,123.03,20.0]
[1742312142446,0.03,123.05,123.04,20.0]
[1742312143043,0.03,123.05,123.03,47.04687821]
[1742312143251,0.03,123.05,123.04,7.4]
[1742312145848,0.03,123.05,123.04,37.25292503]
[1742312146049,0.03,123.05,123.04,43.62292503]
[1742312146449,0.03,123.05,123.04,39.59809263]
[1742312147641,0.03,123.05,123.04,13.77]
[1742312147941,0.03,123.05,123.04,39.59809263]
[1742312149546,0.03,123.05,123.04,7.4]
[1742312149756,0.03,123.05,123.04,27.4]
[1742312157967,0.03,123.05,123.0,6.6515]
[1742312158170,0.03,123.05,123.04,20.0]
[1742312159970,0.03,123.05,123.04,45.82809263]
[1742312160570,0.03,123.05,123.03,27.04687682]
[1742312160770,0.03,123.05,123.04,20.0]
[1742312161076,25.85809263,123.05,123.04,20.0]
[1742312161277,16.55794183,123.05,123.04,20.0]
[1742312161654,0.03,123.05,123.04,20.0]
[1742312162658,0.03,123.05,123.04,36.52794183]
[1742312163675,0.03,123.05,123.04,20.0]
[1742312165771,0.03,123.05,123.04,36.52794183]
[1742312165966,0.03,123.05,123.04,55.17759069]
[1742312167079,0.03,123.05,123.04,36.52794183]
[1742312167283,0.03,123.05,123.04,45.80653552]
[1742312168092,0.03,123.08,123.04,90.2627199]
[1742312168292,0.03,123.08,123.07,45.80653552]
[1742312168481,0.03,123.08,123.07,71.85618438]
[1742312168778,0.03,123.08,123.07,73.07434423]
[1742312171368,0.03,123.08,123.07,54.42469537]
[1742312171758,0.03,123.08,123.07,73.07434423]
[1742312172282,0.03,123.08,123.07,74.69924423]
[1742312172969,0.03,123.11,123.1,20.0]
[1742312173158,0.03,123.11,123.1,65.6740275]
[1742312173660,0.03,123.11,123.1,47.02437864]
[1742312174281,0.03,123.11,123.1,72.0548275]
[1742312174471,0.03,123.12,123.1,97.86136302]
[1742312174681,0.03,123.12,123.11,77.6627199]
[1742312174880,0.03,123.12,123.11,51.85618438]
[1742312175702,0.03,123.12,123.11,77.6627199]
[1742312175859,0.03,123.12,123.11,80.44720327]
[1742312178101,1.6215,123.25,123.17,20.0]
[1742312178298,1.6215,123.25,123.21,45.80653552]
[1742312179286,25.80653552,123.24,123.18,8.61700935]
[1742312179485,25.80653552,123.24,123.21,20.0]
[1742312179673,25.80653552,123.23,123.21,20.0]
[1742312179981,27.42803552,123.25,123.21,20.0]
[1742312180368,25.80653552,123.23,123.21,20.0]
[1742312181369,25.80653552,123.24,123.21,20.0]
[1742312181667,1.6215,123.25,123.21,20.0]
[1742312181993,27.42803552,123.25,123.21,20.0]
[1742312182581,25.80653552,123.24,123.21,20.0]
[1742312182782,25.86953552,123.22,123.18,8.61719023]
[1742312182983,25.80653552,123.2,123.16,214.88]
[1742312183183,25.80653552,123.19,123.16,222.28]
[1742312183490,25.80653552,123.2,123.16,222.28]
[1742312184992,25.80653552,123.21,123.16,248.08653552]
[1742312186004,6.5414,123.22,123.16,248.08653552]
[1742312186174,25.80653552,123.2,123.16,222.28]
[1742312186374,25.80653552,123.21,123.16,248.08653552]
[1742312187771,25.86953552,123.22,123.2,20.0]
[1742312187976,0.063,123.22,123.2,20.0]
[1742312188471,0.063,123.22,123.21,20.0]
[1742312189477,0.063,123.22,123.2,7.4]
[1742312189994,0.063,123.22,123.2,33.20653552]
[1742312190303,0.063,123.22,123.21,47.02365424]
[1742312190498,0.063,123.22,123.21,20.0]
[1742312192377,0.063,123.22,123.21,47.02360829]
[1742312193192,0.063,123.22,123.2,346.42346375]
[1742312193416,0.063,123.22,123.2,33.20653552]
[1742312193586,0.063,123.22,123.2,34.42360733]
[1742312193782,0.063,123.22,123.21,45.80653552]
[1742312194099,0.063,123.22,123.21,20.0]
[1742312194275,0.063,123.22,123.21,45.80653552]
[1742312194476,0.03,123.25,123.24,20.0]
[1742312194675,0.03,123.25,123.24,73.07272257]
[1742312194876,0.03,123.25,123.24,54.42307371]
[1742312195077,0.03,123.25,123.24,27.4]
[1742312195588,0.03,123.25,123.24,20.0]
[1742312196880,25.83653552,123.25,123.19,25.80653552]
[1742312197097,25.80653552,123.22,123.18,222.14]
[1742312197605,25.80653552,123.22,123.21,20.0]
[1742312197798,25.80653552,123.23,123.21,20.0]
[1742312198183,25.80653552,123.22,123.15,33.18653552]
[1742312198379,25.80653552,123.18,123.15,7.38]
[1742312198590,25.80653552,123.18,123.17,20.0]
[1742312198792,25.80653552,123.18,123.13,1.21756541]
[1742312199099,25.80653552,123.17,123.16,20.0]
[1742312199306,25.80653552,123.19,123.17,20.0]
[1742312200297,25.80653552,123.2,123.17,20.0]
[1742312200499,25.80653552,123.22,123.18,7.38]
[1742312200705,1.65,123.23,123.2,20.0]
[1742312200880,25.80653552,123.22,123.2,20.0]
[1742312201077,42.85493232,123.23,123.2,20.0]
[1742312201277,41.20493232,123.23,123.18,48.64793232]
[1742312201481,0.03,123.22,123.18,49.8651826]
[1742312201904,0.03,123.22,123.21,20.0]
[1742312202108,0.03,123.22,123.21,158.1]
[1742312202892,0.03,123.22,123.21,199.30493232]
[1742312203282,0.03,123.22,123.21,217.95458118]
[1742312203891,0.03,123.25,123.24,20.0]
[1742312204105,0.03,123.25,123.24,206.65493232]
[1742312204500,0.03,123.25,123.24,225.30458118]
[1742312206113,0.03,123.25,123.24,537.30458118]
[1742312206992,0.03,123.25,123.24,578.5095135]
[1742312207686,0.03,123.25,123.24,585.0730135]
[1742312207888,0.03,123.25,123.24,585.5730135]
[1742312208088,0.03,123.25,123.24,578.1930135]
[1742312208288,0.03,123.25,123.24,585.5730135]
[1742312208698,41.20493232,123.34,123.28,20.0]
[1742312209006,41.20493232,123.33,123.29,48.58493232]
[1742312209198,8.137,123.35,123.29,8.59624365]
[1742312209199,0.03,123.35,123.29,8.59624365]
[1742312209507,41.20493232,123.33,123.29,186.65493232]
[1742312210004,41.20493232,123.32,123.31,20.0]
[1742312210197,41.20493232,123.32,123.29,145.45]
[1742312210902,18.64964886,123.29,123.22,138.07]
[1742312211103,82.40986464,123.3,123.22,138.07]
[1742312211104,41.20493232,123.23,123.22,138.07]
[1742312211302,41.20493232,123.24,123.22,138.07]
[1742312212112,41.20493232,123.25,123.22,138.07]
[1742312212484,8.113,123.26,123.22,138.07]
[1742312212702,41.20493232,123.24,123.22,138.07]
[1742312213005,8.113,123.26,123.22,138.07]
[1742312213205,41.20493232,123.25,123.22,138.133]
[1742312213419,41.23493232,123.25,123.22,138.133]
[1742312213910,0.03,123.25,123.22,138.133]
[1742312214109,41.23493232,123.25,123.22,138.133]
[1742312214292,0.03,123.25,123.22,138.133]
[1742312214611,41.23493232,123.25,123.22,138.133]
[1742312215000,49.34873232,123.25,123.22,138.133]
[1742312216112,41.23493232,123.25,123.22,138.133]
[1742312216301,0.03,123.25,123.22,138.133]
[1742312216506,41.23493232,123.25,123.22,138.133]
[1742312219111,41.20493232,123.24,123.22,138.133]
[1742312219422,41.20493232,123.23,123.22,138.133]
[1742312219795,0.03,123.25,123.22,138.133]
[1742312219796,41.20493232,123.24,123.22,138.133]
[1742312220794,59.85458118,123.23,123.22,0.063]
[1742312221401,41.20493232,123.23,123.22,0.063]
[1742312223915,0.03,123.25,123.22,0.063]
[1742312224091,41.20493232,123.24,123.22,0.063]
[1742312224296,41.23493232,123.25,123.22,0.063]
[1742312224519,41.20493232,123.24,123.23,20.0]
[1742312225017,41.20493232,123.24,123.22,20.063]
[1742312225319,41.20493232,123.23,123.22,20.063]
[1742312225912,41.20493232,123.24,123.22,20.063]
[1742312226109,41.20493232,123.23,123.22,20.063]
[1742312227114,41.20493232,123.24,123.22,20.063]
[1742312227419,41.23493232,123.25,123.22,20.063]
[1742312227608,41.20493232,123.24,123.22,20.063]
[1742312227811,41.20493232,123.23,123.22,20.063]
[1742312228516,41.20493232,123.24,123.22,20.063]
[1742312229818,41.20493232,123.24,123.22,158.133]